bitfinex/quotes_ETHUSD_20220311
["timestamp","ask_amount","ask_price","bid_price","bid_amount"]
[1646994277144,0.01685124,2602.6,2602.0,2.87994]
[1646994277410,0.01685124,2602.6,2602.2,12.67988]
[1646994277615,0.9599,2602.9,2602.3,17.21942193]
[1646994277812,5.7902,2603.3,2602.6,0.6448]
[1646994277813,0.06758679,2602.8,2602.6,0.6448]
[1646994278006,17.2798,2604.1,2602.7,1.91961]
[1646994278007,0.07373579,2603.2,2602.7,1.91961]
[1646994278408,1.1768,2603.7,2602.7,17.13961]
[1646994278610,1.91965,2603.4,2602.7,17.13961]
[1646994278811,1.91965,2603.4,2602.7,14.63961]
[1646994279011,0.07130618,2603.3,2602.7,14.63961]
[1646994279215,0.07293425,2603.3,2603.2,0.88682326]
[1646994279609,0.07293425,2603.3,2603.2,1.84671326]
[1646994280011,1.99107618,2603.3,2603.2,1.84671326]
[1646994280217,3.25092308,2603.3,2603.2,1.84671326]
[1646994281136,3.1796169,2603.3,2603.1,3.21977]
[1646994281333,0.36757697,2603.2,2603.1,1.91977]
[1646994283333,3.24785697,2603.2,2602.9,1.0476615]
[1646994283534,0.07340386,2603.0,2602.9,1.0476615]
[1646994283737,0.37340386,2603.0,2602.9,1.0476615]
[1646994283937,0.37340386,2603.0,2602.8,2.92007]
[1646994284142,0.37340386,2603.0,2602.4,3.84345753]
[1646994284143,0.37340386,2603.0,2602.6,0.96022]
[1646994284439,0.37340386,2603.0,2602.4,0.00421753]
[1646994284440,0.05628236,2602.7,2602.4,0.00421753]
[1646994284881,0.05628236,2602.7,2602.1,1.92061]
[1646994285082,0.05628236,2602.7,2602.4,0.91272184]
[1646994285283,0.05628236,2602.7,2602.4,0.91659644]
[1646994285284,1.34844916,2602.7,2602.4,0.91659644]
[1646994285481,0.06455421,2602.6,2602.4,0.91659644]
[1646994285680,0.36455421,2602.6,2602.4,0.91659644]
[1646994285882,1.26035,2602.6,2602.4,0.91659644]
[1646994286080,0.0667868,2602.5,2602.4,0.91272184]
[1646994286481,0.0667868,2602.5,2602.4,0.00387457]
[1646994287282,0.0667868,2602.5,2602.1,1.92061]
[1646994287283,1.9875668,2602.5,2602.1,1.92061]
[1646994287482,2.9479536,2602.5,2602.3,0.00387461]
[1646994287682,3.1811668,2602.5,2602.3,0.00387461]
[1646994288632,3.1811668,2602.5,2602.1,2.96238734]
[1646994288834,3.1811668,2602.5,2602.3,0.00389782]
[1646994289035,1.9208,2602.4,2602.3,0.00389782]
[1646994289236,2.2208,2602.4,2602.3,0.00389782]
[1646994289636,2.2208,2602.4,2602.1,2.96238734]
[1646994289835,0.3,2602.3,2602.1,2.96238734]
[1646994290038,0.3,2602.3,2602.2,0.00389786]
[1646994290935,0.3,2602.3,2602.1,2.96238734]
[1646994291136,0.3,2602.3,2602.1,2.96628529]
[1646994292135,0.3,2602.3,2602.1,2.96238734]
[1646994292382,0.3,2602.3,2602.1,2.96629581]
[1646994293385,0.3,2602.3,2602.1,2.96238734]
[1646994293590,0.3,2602.3,2602.1,2.96629581]
[1646994293987,0.3,2602.3,2602.1,6.46629581]
[1646994294193,0.3,2602.3,2602.2,3.5]
[1646994294588,1.26024,2602.5,2602.2,3.5]
[1646994294788,1.26024,2602.5,2602.3,0.96008]
[1646994295887,1.26024,2602.5,2602.3,0.96398759]
[1646994296932,1.26024,2602.5,2602.3,0.96008]
[1646994297132,1.26024,2602.5,2602.3,0.96398759]
[1646994298032,1.26024,2602.5,2602.3,0.96008]
[1646994298033,0.06588454,2602.4,2602.3,0.96008]
[1646994298237,0.06483002,2602.4,2602.3,0.96008]
[1646994298433,0.06483002,2602.4,2602.3,0.96398759]
[1646994299433,0.06483002,2602.4,2602.3,0.96008]
[1646994305540,0.06483002,2602.4,2602.3,4.46008]
[1646994306144,0.06483002,2602.4,2602.3,0.96008]
[1646994306440,0.06483002,2602.4,2602.3,4.46008]
[1646994306741,0.96024,2602.5,2602.4,5.5]
[1646994306941,0.00133306,2602.7,2602.4,20.72]
[1646994307141,0.40348156,2602.8,2602.4,22.1042]
[1646994307385,0.40348156,2602.8,2602.6,12.67988]
[1646994307588,1.91985,2603.0,2602.7,15.22]
[1646994307786,1.91985,2603.0,2602.8,1.07336834]
[1646994308190,0.95983,2603.2,2602.9,15.22]
[1646994308386,0.3,2603.0,2602.9,15.22]
[1646994308590,1.25983,2603.2,2602.9,1.0]
[1646994308792,1.25983,2603.2,2602.8,22.44778342]
[1646994308988,1.25983,2603.2,2602.8,22.14778342]
[1646994309392,1.25983,2603.2,2602.8,23.10763342]
[1646994310194,1.25983,2603.2,2602.8,34.82763342]
[1646994310393,0.00422104,2603.1,2602.8,34.82763342]
[1646994310892,0.00422104,2603.1,2602.8,23.10763342]
[1646994311337,1.25983,2603.2,2602.8,23.10763342]
[1646994311534,0.00422109,2603.1,2602.8,23.10763342]
[1646994311932,0.00422109,2603.1,2602.8,34.82763342]
[1646994312332,0.00422109,2603.1,2602.8,23.10763342]
[1646994312532,1.31309237,2603.2,2602.8,23.10763342]
[1646994312733,0.00422109,2603.1,2602.8,23.10763342]
[1646994313134,0.06492657,2603.1,2602.8,23.10763342]
[1646994313335,0.06492657,2603.1,2602.9,11.72]
[1646994313336,0.00422109,2603.1,2602.9,11.72]
[1646994313534,0.00422109,2603.1,2602.8,23.10763342]
[1646994313738,1.25983,2603.2,2602.8,23.10763342]
[1646994313942,0.00422104,2603.1,2602.8,23.10763342]
[1646994314982,1.25983,2603.2,2602.9,0.05002586]
[1646994315182,0.00409446,2603.1,2602.9,0.05002586]
[1646994315984,1.25983,2603.2,2603.0,3.5]
[1646994316185,1.25983,2603.2,2603.0,11.72]
[1646994316383,0.00409441,2603.1,2602.9,3.85002586]
[1646994316590,0.00409441,2603.1,2602.9,4.55002586]
[1646994317185,1.25983,2603.2,2603.1,11.72]
[1646994317388,0.05825059,2603.4,2603.1,16.22]
[1646994317692,0.05265166,2604.2,2603.3,11.72]
[1646994317887,0.0196362,2603.8,2603.5,11.72]
[1646994318088,0.0196362,2603.8,2603.7,12.3648]
[1646994318288,1.01099773,2604.5,2603.8,15.72]
[1646994318738,1.01099773,2604.5,2604.3,0.6448]
[1646994318936,2.8785006,2604.4,2604.3,0.6448]
[1646994319337,2.8785006,2604.4,2604.3,1.56062187]
[1646994319637,2.8785006,2604.4,2604.3,0.6448]
[1646994319840,0.05634093,2604.3,2604.2,1.91893]
[1646994323283,0.05634093,2604.3,2604.1,1.91895]
[1646994323483,2.87878,2604.3,2604.1,1.91895]
[1646994323689,2.87878,2604.3,2603.7,0.84139133]
[1646994323690,0.06075539,2604.2,2603.7,0.84139133]
[1646994323887,0.95985,2604.1,2603.7,1.13873896]
[1646994324091,0.9598224,2604.0,2603.7,1.13873896]
[1646994324291,1.2598224,2604.0,2603.6,1.91946]
[1646994324888,1.26405201,2604.0,2603.6,1.91946]
[1646994325089,4.14344201,2604.0,2603.6,1.91946]
[1646994325688,4.1392124,2604.0,2603.6,1.91946]
[1646994326131,0.00388629,2603.9,2603.6,1.91946]
[1646994326532,0.00388629,2603.9,2603.8,0.88099854]
[1646994326933,4.1392124,2604.0,2603.8,0.88099854]
[1646994327236,4.14309864,2604.0,2603.8,1.84068854]
[1646994327832,0.05041931,2603.9,2603.8,1.84068854]
[1646994329437,4.14082491,2604.0,2603.8,1.84068854]
[1646994330483,4.1392124,2604.0,2603.8,1.84068854]
[1646994330683,4.14082491,2604.0,2603.8,1.84068854]
[1646994331587,4.1392124,2604.0,2603.8,1.84068854]
[1646994331993,4.1392124,2604.0,2603.9,3.5]
[1646994331994,3.18100251,2604.0,2603.9,3.5]
[1646994332189,0.30161251,2604.0,2603.9,3.5]
[1646994332392,0.30161251,2604.0,2603.9,1.0]
[1646994332791,0.30161251,2604.0,2603.8,1.84068854]
[1646994332992,0.3,2604.0,2603.8,1.84068854]
[1646994333191,0.3,2604.0,2603.8,13.56068854]
[1646994333636,0.3,2604.0,2603.8,14.56068854]
[1646994334037,0.3,2604.0,2603.9,3.5]
[1646994334237,0.3,2604.0,2603.9,4.5]
[1646994334438,0.3042344,2604.0,2603.9,4.5]
[1646994335041,0.3042344,2604.0,2603.9,1.0]
[1646994335340,0.3,2604.0,2603.8,14.56068854]
[1646994336839,0.3042344,2604.0,2603.8,14.56068854]
[1646994337288,0.3042344,2604.0,2603.9,3.49897036]
[1646994337598,0.3042344,2604.0,2603.9,4.44897036]
[1646994337787,1.01304508,2604.3,2603.9,4.44897036]
[1646994338387,1.01304508,2604.3,2604.0,1.11443062]
[1646994338791,1.01304508,2604.3,2604.1,0.95934]
[1646994339193,1.31304508,2604.3,2604.1,0.95934]
[1646994339393,2.27244318,2604.3,2604.1,0.95934]
[1646994340196,1.95075077,2604.3,2604.1,0.95934]
[1646994341941,1.95498487,2604.3,2604.1,0.95934]
[1646994342342,0.3,2604.2,2604.0,15.75310062]
[1646994342745,1.2635141,2604.3,2604.0,15.90669162]
[1646994343144,1.2635141,2604.3,2604.0,15.75310062]
[1646994343145,1.25928,2604.3,2604.0,15.75310062]
[1646994343341,1.2635141,2604.3,2604.0,15.75310062]
[1646994343746,1.2635141,2604.3,2604.1,0.95932]
[1646994343946,1.25928,2604.3,2604.1,0.95932]
[1646994344147,1.26090312,2604.3,2604.1,0.95932]
[1646994344985,1.25928,2604.3,2604.1,0.95932]
[1646994345186,1.9186962,2604.3,2604.1,12.67932]
[1646994345395,1.91866,2604.5,2604.3,2.0]
[1646994346389,1.91866,2604.5,2604.2,0.4744]
[1646994346590,0.3,2604.4,2604.2,0.4744]
[1646994348391,0.3,2604.4,2604.2,12.1944]
[1646994348943,0.3,2604.4,2604.2,13.1944]
[1646994349344,0.3,2604.4,2604.2,1.4744]
[1646994349750,0.05570743,2604.8,2604.5,0.9593]
[1646994349948,3.5,2605.1,2604.5,1.91857]
[1646994350148,0.01702291,2604.8,2604.5,1.91857]
[1646994350946,0.05781053,2605.0,2604.5,1.91857]
[1646994351149,0.05781053,2605.0,2604.6,1.01556706]
[1646994351348,0.00425601,2604.8,2604.6,1.01556706]
[1646994351748,0.00425601,2604.8,2604.6,1.31556706]
[1646994352150,0.07316204,2605.2,2604.6,1.31556706]
[1646994352395,0.05614056,2605.2,2604.8,1.9182]
[1646994352692,0.07316184,2605.2,2604.8,1.9182]
[1646994353102,0.07316184,2605.2,2605.1,0.99138098]
[1646994353497,0.05614056,2605.2,2605.1,0.99138098]
[1646994354299,0.05614056,2605.2,2605.1,1.95051098]
[1646994355501,0.00160848,2605.3,2605.1,1.95051098]
[1646994355706,0.04730794,2605.5,2605.1,1.95051098]
[1646994356140,0.00160848,2605.3,2605.1,1.95051098]
[1646994356842,0.00160848,2605.3,2605.1,0.95913]
[1646994357046,0.04685417,2605.4,2605.1,0.95913]
[1646994357448,0.00160848,2605.3,2605.0,1.91826]
[1646994357644,0.04868969,2605.3,2605.0,1.91826]
[1646994358145,0.3842,2605.6,2605.0,1.91826]
[1646994358146,3.8842,2605.6,2605.0,1.91826]
[1646994358351,0.05104384,2605.5,2605.0,2.94441694]
[1646994358547,0.00425997,2605.3,2605.0,2.94441694]
[1646994358749,0.06037121,2605.3,2605.0,2.94441694]
[1646994359350,0.05611124,2605.3,2605.0,2.94441694]
[1646994359802,0.06037121,2605.3,2605.0,2.94441694]
[1646994360593,0.05611124,2605.3,2605.0,2.94441694]
[1646994360792,0.06037121,2605.3,2605.0,2.94441694]
[1646994361798,0.05611124,2605.3,2605.0,2.94441694]
[1646994361999,0.06029778,2605.3,2605.0,2.94441694]
[1646994362797,0.06029778,2605.3,2605.0,1.91826]
[1646994362998,0.05611124,2605.3,2605.0,1.91826]
[1646994363198,0.06021791,2605.3,2605.0,1.91826]
[1646994364244,0.05611124,2605.3,2605.0,1.91826]
[1646994364446,0.06021791,2605.3,2605.0,1.91826]
[1646994364844,0.38830667,2605.3,2605.0,1.91826]
[1646994365044,0.06113677,2605.2,2605.0,1.91826]
[1646994365645,0.06531692,2605.2,2605.0,1.91826]
[1646994366544,0.06113677,2605.2,2605.0,1.91826]
[1646994366947,0.06506689,2605.2,2604.7,1.91863]
[1646994367147,0.06506689,2605.2,2604.7,2.91863]
[1646994367407,0.05559216,2605.0,2604.7,1.91863]
[1646994367609,3.8842,2605.0,2604.7,1.91863]
[1646994367907,0.04809956,2604.9,2604.7,1.91863]
[1646994368607,0.43229956,2604.9,2604.7,1.91863]
[1646994368911,0.05585756,2604.8,2604.7,1.91863]
[1646994369107,3.55585756,2604.8,2604.5,1.91877]
[1646994369308,4.4491,2604.8,2604.5,1.91877]
[1646994369510,0.04910558,2604.7,2604.3,1.91895]
[1646994370109,0.04782087,2604.7,2604.3,1.91895]
[1646994370609,0.0039377,2604.6,2604.3,1.91895]
[1646994371052,0.0039377,2604.6,2604.3,2.84122771]
[1646994371257,0.06087502,2604.6,2604.3,3.84122771]
[1646994371459,0.05693732,2604.6,2604.3,2.84122771]
[1646994371655,0.06087507,2604.6,2604.3,3.84122771]
[1646994372754,0.05693732,2604.6,2604.3,3.84122771]
[1646994372953,0.06087507,2604.6,2604.3,3.84122771]
[1646994373756,0.05693732,2604.6,2604.3,3.84122771]
[1646994374059,0.06087507,2604.6,2604.3,3.84122771]
[1646994374458,0.00393775,2604.6,2604.3,3.84122771]
[1646994375099,0.05757662,2604.8,2604.3,3.84122771]
[1646994375296,0.00393729,2604.6,2604.4,0.07543187]
[1646994375499,0.00393729,2604.6,2604.5,0.95939]
[1646994376297,0.05960541,2605.0,2604.5,0.95939]
[1646994376501,0.05960541,2605.0,2604.9,0.96294739]
[1646994376700,0.05960541,2605.0,2604.9,1.92229739]
[1646994377498,0.3842,2605.3,2604.9,1.92229739]
[1646994377697,0.00393684,2605.1,2604.9,1.92229739]
[1646994377897,0.06455845,2605.1,2604.9,1.92229739]
[1646994378541,5.3965,2605.5,2604.9,1.92229739]
[1646994378751,0.05677344,2605.3,2604.9,1.92229739]
[1646994378947,0.05553814,2605.1,2604.9,1.92229739]
[1646994379351,0.00393683,2605.1,2604.9,1.92229739]
[1646994379547,0.06368037,2605.1,2604.9,1.92229739]
[1646994379749,0.04765699,2605.3,2604.9,1.92229739]
[1646994379948,1.58017501,2605.2,2604.9,1.92229739]
[1646994380151,0.05023103,2605.3,2604.9,1.92229739]
[1646994380351,5.0123,2605.5,2604.9,1.92229739]
[1646994380352,0.00393683,2605.1,2604.9,1.92229739]
[1646994380949,0.04721347,2605.1,2604.9,1.92229739]
[1646994381152,0.00160824,2605.1,2604.9,1.92229739]
[1646994381550,0.05316905,2605.1,2604.9,1.92229739]
[1646994381852,0.00160824,2605.1,2604.9,1.92229739]
[1646994382050,0.05672446,2605.1,2604.9,1.92229739]
[1646994382303,1.58024991,2605.0,2604.6,2.91869]
[1646994382493,0.04996245,2604.9,2604.6,2.91869]
[1646994382693,0.05065139,2605.1,2604.6,2.91869]
[1646994382893,1.58025988,2605.0,2604.6,1.91869]
[1646994383094,0.05171392,2605.1,2604.6,2.91869]
[1646994383294,0.04777288,2605.1,2604.9,1.10228506]
[1646994383706,0.07011725,2605.3,2604.9,1.10228506]
[1646994383899,1.58018145,2605.2,2604.9,1.10228506]
[1646994384099,0.05909603,2605.1,2604.9,1.10228506]
[1646994384505,0.07435064,2605.3,2605.0,0.95932]
[1646994384699,1.5801269,2605.2,2605.0,0.95932]
[1646994384899,0.05170675,2605.1,2605.0,0.95932]
[1646994385298,0.00394104,2605.1,2605.0,0.95932]
[1646994385499,0.05400353,2605.1,2605.0,0.95932]
[1646994385699,0.00394104,2605.1,2605.0,0.95932]
[1646994386043,0.04897938,2605.1,2605.0,0.95932]
[1646994386245,0.00394086,2605.2,2605.0,0.95932]
[1646994386644,0.054791,2605.2,2605.0,0.95932]
[1646994387050,0.05085014,2605.2,2605.0,0.95932]
[1646994387247,0.05479095,2605.2,2605.0,0.95932]
[1646994388047,1.5800307,2605.1,2605.0,0.95932]
[1646994388851,0.05479095,2605.2,2605.0,0.95932]
[1646994389456,0.05085014,2605.2,2605.0,0.95932]
[1646994389658,0.05245838,2605.2,2605.0,0.95932]
[1646994389892,1.5800554,2605.1,2605.0,0.95932]
[1646994390895,5.0800554,2605.1,2604.7,1.0]
[1646994391095,1.62942865,2605.0,2604.7,0.99867598]
[1646994391297,0.05160517,2604.8,2604.5,1.91882]
[1646994391696,0.04846369,2605.0,2604.5,1.91882]
[1646994391894,1.58015506,2604.9,2604.5,2.93731962]
[1646994392093,0.0524867,2604.8,2604.5,2.93731962]
[1646994392495,0.00160824,2604.8,2604.5,2.93731962]
[1646994392894,0.06117302,2604.8,2604.5,2.93731962]
[1646994393093,0.05180506,2605.0,2604.5,2.93731962]
[1646994393295,0.05379865,2604.8,2604.5,2.93731962]
[1646994393544,0.00426895,2604.8,2604.5,2.93731962]
[1646994394353,0.05133852,2605.0,2604.5,3.89672962]
[1646994394552,0.00426895,2604.8,2604.5,3.89672962]
[1646994395551,0.05133852,2605.0,2604.5,2.93731962]
[1646994395754,0.00426895,2604.8,2604.5,2.93731962]
[1646994396654,0.05342072,2604.9,2604.5,2.93731962]
[1646994396854,0.00426895,2604.8,2604.5,2.93731962]
[1646994397891,0.05342072,2604.9,2604.5,2.93731962]
[1646994398092,0.00418891,2604.8,2604.5,2.93731962]
[1646994399098,1.58020483,2604.8,2604.5,2.93731962]
[1646994399298,0.05406536,2604.7,2604.5,2.93731962]
[1646994399698,0.00418891,2604.8,2604.5,2.93731962]
[1646994400202,0.05434132,2604.8,2604.6,0.07453194]
[1646994400400,0.05853023,2604.8,2604.6,0.07453194]
[1646994400605,0.00418891,2604.8,2604.6,0.07453194]
[1646994400799,0.05794291,2604.8,2604.6,0.07453194]
[1646994401044,0.00418891,2604.8,2604.6,0.07453194]
[1646994401445,0.05692784,2604.7,2604.6,0.07453194]
[1646994402650,0.05692784,2604.7,2604.6,1.11602546]
[1646994403650,0.00401719,2604.8,2604.6,1.11602546]
[1646994403851,1.58024711,2604.8,2604.6,1.11602546]
[1646994404150,1.5842643,2604.8,2604.6,1.11602546]
[1646994404804,1.5842643,2604.8,2604.6,1.04149352]
[1646994404992,1.58024711,2604.8,2604.6,1.04149352]
[1646994405396,1.58418755,2604.8,2604.6,1.04149352]
[1646994406191,1.58024711,2604.8,2604.6,1.04149352]
[1646994406593,1.58418755,2604.8,2604.6,1.04149352]
[1646994406793,1.58418755,2604.8,2604.5,0.07514215]
[1646994407396,1.58024711,2604.8,2604.5,0.07514215]
[1646994407798,1.58418759,2604.8,2604.6,0.89809341]
[1646994408751,1.58024711,2604.8,2604.6,0.89809341]
[1646994409052,1.58419272,2604.8,2604.5,0.07514215]
[1646994409851,1.58024711,2604.8,2604.1,3.60726997]
[1646994410052,2.54382277,2604.8,2604.1,3.35726997]
[1646994410252,5.08024711,2604.7,2604.4,0.95410284]
[1646994410456,1.58024711,2604.6,2604.4,0.95410284]
[1646994411253,1.5841929,2604.6,2604.4,0.95410284]
[1646994412302,1.58024711,2604.6,2604.4,0.95410284]
[1646994412491,1.58419255,2604.6,2604.4,0.95410284]
[1646994413194,1.58260754,2604.6,2604.4,0.95410284]
[1646994413390,3.5,2604.7,2604.4,0.95410284]
[1646994413794,0.05945869,2604.6,2604.4,0.95410284]
[1646994414596,0.05551325,2604.6,2604.4,0.95410284]
[1646994414795,0.05551325,2604.6,2604.5,0.07506333]
[1646994414999,0.05945869,2604.6,2604.5,0.07506333]
[1646994415801,0.05551325,2604.6,2604.5,0.07506333]
[1646994419648,0.05551325,2604.6,2604.5,0.14883972]
[1646994422095,0.95963,2604.8,2604.5,0.14883972]
[1646994422096,0.00394543,2604.7,2604.5,0.14883972]
[1646994422794,0.05115239,2604.7,2604.5,0.14883972]
[1646994422995,0.04720696,2604.7,2604.5,0.14883972]
[1646994423395,0.05115235,2604.7,2604.5,0.14883972]
[1646994423650,0.553,2604.6,2604.5,0.14883972]
[1646994423848,4.053,2604.6,2604.5,0.14883972]
[1646994425246,0.553,2604.6,2604.5,0.14883972]
[1646994425948,0.00394543,2604.7,2604.5,0.14883972]
[1646994426847,1.1513,2604.8,2604.5,0.14883972]
[1646994427047,0.00394538,2604.7,2604.5,0.14883972]
[1646994427894,1.1513,2604.8,2604.5,0.14883972]
[1646994428095,0.00394538,2604.7,2604.5,0.14883972]
[1646994429099,1.7043,2604.8,2604.5,0.14883972]
[1646994429300,0.00394538,2604.7,2604.5,0.14883972]
[1646994429701,0.00394538,2604.7,2604.5,0.07563604]
[1646994430301,1.7043,2604.8,2604.5,0.07563604]
[1646994430602,0.00394537,2604.7,2604.5,0.07563604]
[1646994431048,3.50394537,2604.7,2604.5,0.07563604]
[1646994431449,3.5,2604.7,2604.5,0.07563604]
[1646994431948,3.50394537,2604.7,2604.5,0.07563604]
[1646994432748,3.5,2604.7,2604.5,0.07563604]
[1646994432949,4.05694537,2604.7,2604.5,0.07563604]
[1646994433449,1.58036706,2604.6,2604.5,0.07563604]
[1646994434552,5.08036706,2604.6,2604.5,0.07563604]
[1646994435195,1.58036706,2604.6,2604.5,0.07563604]
[1646994435396,1.57886937,2604.6,2604.5,0.07563604]
[1646994436402,0.04751802,2604.7,2604.5,0.07563604]
[1646994436597,0.00394542,2604.7,2604.5,0.07563604]
[1646994437400,0.00394542,2604.7,2604.6,0.99611996]
[1646994437603,0.0566992,2605.1,2604.6,0.99611996]
[1646994437799,0.00394537,2604.7,2604.6,0.99611996]
[1646994438400,0.00394537,2604.7,2604.6,1.95550996]
[1646994438654,0.07247833,2605.1,2604.5,0.07563604]
[1646994438655,4.1096992,2605.1,2604.5,0.07563604]
[1646994439055,0.00394533,2604.8,2604.5,0.07563604]
[1646994439851,4.45951,2604.9,2604.5,0.07563604]
[1646994440252,0.00394533,2604.8,2604.5,0.07563604]
[1646994441056,4.45951,2604.9,2604.5,0.07563604]
[1646994441255,0.553,2604.8,2604.5,0.07563604]
[1646994441459,0.55695419,2604.8,2604.5,0.07563604]
[1646994442301,0.553,2604.8,2604.5,0.07563604]
[1646994442493,0.55695419,2604.8,2604.5,0.07563604]
[1646994443197,3.55429858,2604.7,2604.5,0.07563604]
[1646994443394,0.553,2604.6,2604.5,0.07563604]
[1646994443998,4.053,2604.6,2604.5,0.07563604]
[1646994444205,0.553,2604.6,2604.5,0.07563604]
[1646994445101,4.053,2604.6,2604.5,0.07563604]
[1646994445301,0.553,2604.6,2604.5,0.07563604]
[1646994445899,4.053,2604.6,2604.5,0.07563604]
[1646994446146,0.553,2604.6,2604.5,0.07563604]
[1646994446348,4.053,2604.6,2604.5,0.07563604]
[1646994447348,5.04526488,2604.6,2604.5,0.07563604]
[1646994449558,5.23706488,2604.6,2604.5,0.07563604]
[1646994449803,5.04526488,2604.6,2604.5,0.07563604]
[1646994449994,0.95994,2604.4,2603.6,0.08185116]
[1646994450195,4.053,2604.3,2603.6,0.08185116]
[1646994451295,0.3842,2604.1,2603.5,0.83670193]
[1646994451496,4.053,2604.0,2603.5,0.83670193]
[1646994452996,0.95991,2603.9,2603.5,0.83670193]
[1646994453197,2.04351,2603.9,2603.5,0.83670193]
[1646994453399,2.34351,2603.9,2603.5,0.83670193]
[1646994454251,3.5,2603.8,2603.5,0.83670193]
[1646994454556,2.04351,2603.9,2603.5,0.83670193]
[1646994456050,2.04351,2603.9,2603.5,0.9166644]
[1646994456251,0.553,2603.9,2603.5,0.9166644]
[1646994456451,2.16459235,2604.2,2603.5,2.8362044]
[1646994456650,2.71759235,2604.2,2603.5,2.8362044]
[1646994457694,2.71759235,2604.2,2604.0,0.88171682]
[1646994457898,1.53759235,2604.2,2604.0,0.88171682]
[1646994458301,0.57780235,2604.2,2604.0,0.88171682]
[1646994459499,0.02480235,2604.2,2604.0,0.88171682]
[1646994459899,1.01551673,2604.4,2604.0,0.88171682]
[1646994460303,1.01157106,2604.4,2604.0,0.88171682]
[1646994460599,1.01157106,2604.4,2604.0,1.84139682]
[1646994460600,1.0155168,2604.4,2604.0,1.84139682]
[1646994461243,0.0558068,2604.4,2604.0,1.84139682]
[1646994461642,0.05186106,2604.4,2604.0,1.84139682]
[1646994461850,0.00160397,2604.4,2604.0,2.14139682]
[1646994462053,0.00160397,2604.4,2604.1,2.00099358]
[1646994462649,0.04739074,2604.8,2604.1,2.00099358]
[1646994462849,0.04739074,2604.8,2604.7,0.90175468]
[1646994463253,0.06317127,2604.8,2604.7,0.90175468]
[1646994463852,0.04739074,2604.8,2604.7,0.90175468]
[1646994467503,0.95967,2604.7,2604.2,1.1455]
[1646994467696,0.95967,2604.7,2604.1,0.27373358]
[1646994468096,0.95967,2604.7,2603.9,0.25962316]
[1646994468949,0.00405637,2604.4,2603.9,0.25962316]
[1646994469150,0.00405637,2604.4,2604.0,0.89175715]
[1646994469951,0.95967,2604.7,2604.4,0.85983061]
[1646994470154,0.97541777,2604.7,2604.4,0.85983061]
[1646994470350,0.05084895,2604.6,2604.4,0.85983061]
[1646994471451,0.05478621,2604.6,2604.4,0.85983061]
[1646994472306,0.05022502,2604.8,2604.4,0.85983061]
[1646994472698,0.00393726,2604.6,2604.4,0.85983061]
[1646994473599,0.05022502,2604.8,2604.4,0.85983061]
[1646994473799,0.00394529,2604.6,2604.4,0.85983061]
[1646994474699,0.05022502,2604.8,2604.4,0.85983061]
[1646994475099,0.00394529,2604.6,2604.4,0.85983061]
[1646994475799,0.02485878,2604.5,2604.4,0.85983061]
[1646994478856,0.07952959,2604.5,2604.4,0.85983061]
[1646994479655,0.07863747,2604.5,2604.4,0.85983061]
[1646994479895,0.02396666,2604.5,2604.4,0.85983061]
[1646994484751,0.02396666,2604.5,2604.0,1.2056]
[1646994485754,0.02396666,2604.5,2604.1,0.98041179]
[1646994485952,0.003945,2604.4,2604.1,0.98041179]
[1646994486852,0.02396666,2604.5,2604.1,0.98041179]
[1646994487054,0.003945,2604.4,2604.1,0.98041179]
[1646994487894,0.08143396,2604.5,2604.1,0.98041179]
[1646994488299,0.003945,2604.4,2604.1,0.98041179]
[1646994489099,3.58143396,2604.5,2604.1,0.98041179]
[1646994489299,4.13443396,2604.5,2604.1,0.98041179]
[1646994489500,0.00394501,2604.4,2604.1,0.98041179]
[1646994489698,0.02909794,2604.4,2604.1,0.98041179]
[1646994490499,0.02515293,2604.4,2604.1,0.98041179]
[1646994490700,0.02909794,2604.4,2604.1,0.98041179]
[1646994491544,0.02515293,2604.4,2604.1,0.98041179]
[1646994491945,0.02909794,2604.4,2604.1,0.98041179]
[1646994492746,0.02515293,2604.4,2603.8,3.43894]
[1646994493147,0.02909794,2604.4,2603.8,3.43894]
[1646994493351,0.553,2604.3,2603.5,4.4302]
[1646994493553,0.06024223,2604.0,2603.3,6.1344]
[1646994493755,0.553,2603.9,2603.7,0.96015876]
[1646994494869,0.553,2603.9,2603.3,0.5]
[1646994494870,3.5,2603.8,2603.3,0.5]
[1646994495056,0.60817869,2603.7,2603.3,0.5]
[1646994497054,3.5,2603.6,2603.3,0.5]
[1646994497356,0.553,2603.5,2603.3,0.5]
[1646994497756,0.553,2603.5,2603.4,0.87972014]
[1646994498157,1.1904,2604.1,2603.4,0.87972014]
[1646994498357,0.0477458,2603.8,2603.4,0.87972014]
[1646994499357,0.02461509,2603.6,2603.4,1.83960014]
[1646994501265,0.02461509,2603.6,2603.4,2.13960014]
[1646994501469,0.02461509,2603.6,2603.4,2.20949836]
[1646994503803,0.02461509,2603.6,2603.5,0.07235051]
[1646994504003,0.02375092,2603.6,2603.5,0.07235051]
[1646994524558,0.00369343,2604.4,2603.8,0.07168399]
[1646994525001,0.00369343,2604.4,2603.9,12.49013037]
[1646994525200,0.24454068,2605.4,2604.0,12.18324865]
[1646994525399,1.58023853,2605.3,2605.2,1.03521951]
[1646994525601,2.11065,2605.4,2605.2,1.03521951]
[1646994525801,1.91865,2605.4,2605.2,1.03521951]
[1646994526001,0.95928,2605.4,2605.2,1.03521951]
[1646994526401,0.95928,2605.4,2605.0,0.95932]
[1646994526809,0.96297006,2605.4,2604.7,1.91863]
[1646994527211,3.5,2605.3,2604.7,1.91863]
[1646994527807,1.91892,2605.2,2604.9,0.83150024]
[1646994528009,0.00369033,2605.1,2604.9,0.83150024]
[1646994528852,1.91892,2605.2,2604.9,0.83150024]
[1646994529053,0.00369061,2605.1,2604.9,0.83150024]
[1646994530053,1.91892,2605.2,2604.9,0.83150024]
[1646994530353,0.00369061,2605.1,2604.9,0.83150024]
[1646994530554,0.00369061,2605.1,2605.0,0.95931]
[1646994531160,1.91892,2605.2,2605.0,0.95931]
[1646994531360,1.91892,2605.2,2604.9,0.83150024]
[1646994531561,1.92261056,2605.2,2604.9,0.83150024]
[1646994532500,1.91892,2605.2,2604.9,0.83150024]
[1646994532696,1.92261053,2605.2,2604.9,0.83150024]
[1646994533700,1.91892,2605.2,2604.9,0.83150024]
[1646994533900,0.00369053,2605.2,2604.9,0.83150024]
[1646994534100,0.00369053,2605.2,2604.9,2.16665457]
[1646994534800,3.5,2605.9,2604.9,2.16665457]
[1646994535005,3.8,2605.9,2605.5,0.95372011]
[1646994535300,0.01475991,2605.6,2605.5,0.95372011]
[1646994535501,0.06794843,2605.6,2605.5,0.95372011]